[Event "Live Chess"]
[Site "Chess.com"]
[Date "2024.06.01"]
[Round "-"]
[White "bobby_jamesFischer86"]
[Black "AndrewBak1"]
[Result "0-1"]
[WhiteElo "1610"]
[BlackElo "1836"]
[TimeControl "300"]
[EndTime "13:36:01 PDT"]
[Termination "AndrewBak1 won on time"]

1. d4 {[%clk 0:04:57.4]} 1... d5 {[%clk 0:04:58.7]} 2. c4 {[%clk 0:04:56.3]}
2... c6 {[%clk 0:04:57.2]} 3. cxd5 {[%clk 0:04:54.2]} 3... cxd5 {[%clk
0:04:54.8]} 4. Nf3 {[%clk 0:04:53]} 4... Nc6 {[%clk 0:04:53.2]} 5. Nc3 {[%clk
0:04:51.4]} 5... Bf5 {[%clk 0:04:51.4]} 6. e3 {[%clk 0:04:49]} 6... e6 {[%clk
0:04:50.7]} 7. Bd3 {[%clk 0:04:43.6]} 7... Bg6 {[%clk 0:04:47.2]} 8. O-O {[%clk
0:04:40.1]} 8... Nf6 {[%clk 0:04:46.2]} 9. a3 {[%clk 0:04:36.4]} 9... Bd6 {[%clk
0:04:45.2]} 10. Nb5 {[%clk 0:04:34.5]} 10... Bb8 {[%clk 0:04:43.3]} 11. b4
{[%clk 0:04:31.2]} 11... a6 {[%clk 0:04:41.8]} 12. Nc3 {[%clk 0:04:29.9]} 12...
O-O {[%clk 0:04:39.2]} 13. Bb2 {[%clk 0:04:28.5]} 13... Qd6 {[%clk 0:04:36.8]}
14. g3 {[%clk 0:04:25]} 14... Bh5 {[%clk 0:04:33.1]} 15. Be2 {[%clk 0:04:16.2]}
15... Bg4 {[%clk 0:04:27.4]} 16. Na4 {[%clk 0:04:14.1]} 16... Bh3 {[%clk
0:04:25.9]} 17. Re1 {[%clk 0:04:12.9]} 17... b5 {[%clk 0:04:18.4]} 18. Nc5
{[%clk 0:04:07.9]} 18... Ne4 {[%clk 0:04:11.9]} 19. Ne5 {[%clk 0:04:00.8]} 19...
Nxe5 {[%clk 0:04:05.4]} 20. dxe5 {[%clk 0:03:59.2]} 20... Qe7 {[%clk 0:03:59.7]}
21. Nxe4 {[%clk 0:03:51.7]} 21... dxe4 {[%clk 0:03:59.6]} 22. Bf1 {[%clk
0:03:47]} 22... Bxf1 {[%clk 0:03:56.4]} 23. Rxf1 {[%clk 0:03:45.6]} 23... Rd8
{[%clk 0:03:54.2]} 24. Qe2 {[%clk 0:03:44]} 24... Qg5 {[%clk 0:03:50.7]} 25.
Rfd1 {[%clk 0:03:40.1]} 25... Bxe5 {[%clk 0:03:46.5]} 26. Bxe5 {[%clk
0:03:35.3]} 26... Qxe5 {[%clk 0:03:46.4]} 27. Rac1 {[%clk 0:03:31]} 27... h6
{[%clk 0:03:43.1]} 28. Qc2 {[%clk 0:03:23.9]} 28... Rd5 {[%clk 0:03:33.7]} 29.
Qc6 {[%clk 0:03:13.3]} 29... Rad8 {[%clk 0:03:15.4]} 30. Rxd5 {[%clk 0:03:11.1]}
30... exd5 {[%clk 0:03:11.1]} 31. Qxa6 {[%clk 0:03:03.5]} 31... d4 {[%clk
0:03:10.4]} 32. exd4 {[%clk 0:03:01]} 32... Rxd4 {[%clk 0:03:10.3]} 33. Qc8+
{[%clk 0:02:55.9]} 33... Kh7 {[%clk 0:03:08.3]} 34. Qc2 {[%clk 0:02:46.3]} 34...
g6 {[%clk 0:03:03.6]} 35. Qc5 {[%clk 0:02:40.2]} 35... Rd5 {[%clk 0:02:59.1]}
36. Qf8 {[%clk 0:02:23.3]} 36... Qe6 {[%clk 0:02:47]} 37. Qc8 {[%clk 0:02:12.3]}
37... Rd1+ {[%clk 0:02:38.4]} 38. Kg2 {[%clk 0:02:08.4]} 38... Rxc1 {[%clk
0:01:52.6]} 39. Qxc1 {[%clk 0:02:01.7]} 39... Qb3 {[%clk 0:01:49.2]} 40. Qe3
{[%clk 0:01:53.7]} 40... Qc4 {[%clk 0:01:41.6]} 41. h3 {[%clk 0:01:47]} 41... f5
{[%clk 0:01:33.5]} 42. Qa7+ {[%clk 0:01:43.7]} 42... Kg8 {[%clk 0:01:31.3]} 43.
Qb8+ {[%clk 0:01:41.9]} 43... Kf7 {[%clk 0:01:30.3]} 44. Qb7+ {[%clk 0:01:39.6]}
44... Kf6 {[%clk 0:01:29.4]} 45. Qb6+ {[%clk 0:01:36.5]} 45... Ke5 {[%clk
0:01:28.8]} 46. Qxg6 {[%clk 0:01:26]} 46... Qd3 {[%clk 0:01:27.5]} 47. Qe8+
{[%clk 0:01:17.4]} 47... Kd4 {[%clk 0:01:23.1]} 48. Qd7+ {[%clk 0:01:07.9]}
48... Kc3 {[%clk 0:01:22]} 49. Qxf5 {[%clk 0:00:47.2]} 49... Kb3 {[%clk
0:01:09.6]} 50. h4 {[%clk 0:00:34.7]} 50... Kxa3 {[%clk 0:01:03.1]} 51. Qf4
{[%clk 0:00:33.6]} 51... Kxb4 {[%clk 0:00:58]} 52. Qf8+ {[%clk 0:00:24.5]} 52...
Kc3 {[%clk 0:00:55.4]} 53. Qc5+ {[%clk 0:00:23]} 53... Qc4 {[%clk 0:00:53.6]}
54. Qe5+ {[%clk 0:00:20.8]} 54... Kb3 {[%clk 0:00:51.4]} 55. Qa1 {[%clk
0:00:18.3]} 55... b4 {[%clk 0:00:47.4]} 56. Qb1+ {[%clk 0:00:17.2]} 56... Ka4
{[%clk 0:00:46.8]} 57. Qa1+ {[%clk 0:00:15.8]} 57... Kb5 {[%clk 0:00:45.8]} 58.
Qe5+ {[%clk 0:00:15.2]} 58... Kb6 {[%clk 0:00:39.5]} 59. Qd6+ {[%clk 0:00:13.5]}
59... Kb5 {[%clk 0:00:34.5]} 60. Qd7+ {[%clk 0:00:11.6]} 60... Kc5 {[%clk
0:00:32]} 61. Qc7+ {[%clk 0:00:10.4]} 61... Kd4 {[%clk 0:00:31.6]} 62. Qd6+
{[%clk 0:00:09.1]} 62... Kc3 {[%clk 0:00:30.6]} 63. Qe5+ {[%clk 0:00:07.9]}
63... Qd4 {[%clk 0:00:29.8]} 64. Qc7+ {[%clk 0:00:06.7]} 64... Kb2 {[%clk
0:00:26.3]} 65. Qa5 {[%clk 0:00:04.4]} 65... b3 {[%clk 0:00:19.4]} 66. Qe1
{[%clk 0:00:03.9]} 66... Ka2 {[%clk 0:00:14.4]} 67. Qe2+ {[%clk 0:00:03.1]}
67... b2 {[%clk 0:00:13.6]} 68. Qd1 {[%clk 0:00:01.6]} 68... Qxd1 {[%clk
0:00:12]} 0-1

[Event "Live Chess"]
[Site "Chess.com"]
[Date "2024.06.01"]
[Round "-"]
[White "degringolade64"]
[Black "WeakOldFinished"]
[Result "0-1"]
[WhiteElo "2139"]
[BlackElo "2214"]
[TimeControl "300"]
[EndTime "13:36:02 PDT"]
[Termination "WeakOldFinished won by resignation"]

1. e4 {[%clk 0:04:56.7]} 1... c5 {[%clk 0:04:58.5]} 2. Nf3 {[%clk 0:04:54.7]}
2... d6 {[%clk 0:04:56.5]} 3. Bb5+ {[%clk 0:04:53.3]} 3... Nc6 {[%clk
0:04:55.6]} 4. O-O {[%clk 0:04:51.7]} 4... Bd7 {[%clk 0:04:54.7]} 5. Re1 {[%clk
0:04:49.7]} 5... a6 {[%clk 0:04:54]} 6. Bf1 {[%clk 0:04:48]} 6... Nf6 {[%clk
0:04:53]} 7. c3 {[%clk 0:04:46]} 7... Bg4 {[%clk 0:04:51.3]} 8. d4 {[%clk
0:04:44.9]} 8... cxd4 {[%clk 0:04:39.5]} 9. cxd4 {[%clk 0:04:44.8]} 9... Bxf3
{[%clk 0:04:36.8]} 10. gxf3 {[%clk 0:04:44.7]} 10... e6 {[%clk 0:04:35.7]} 11.
Bg5 {[%clk 0:04:28.7]} 11... Be7 {[%clk 0:04:33.2]} 12. Nc3 {[%clk 0:04:20.2]}
12... d5 {[%clk 0:04:26.5]} 13. Bxf6 {[%clk 0:04:16]} 13... Bxf6 {[%clk
0:04:23.1]} 14. exd5 {[%clk 0:04:14.7]} 14... Nxd4 {[%clk 0:04:21.1]} 15. Re4
{[%clk 0:04:01.6]} 15... Qb6 {[%clk 0:03:30.2]} 16. Qa4+ {[%clk 0:03:53.3]}
16... Kf8 {[%clk 0:03:21.3]} 17. dxe6 {[%clk 0:03:45.5]} 17... Nxf3+ {[%clk
0:03:10]} 18. Kg2 {[%clk 0:03:41.1]} 18... Ne5 {[%clk 0:03:02.3]} 19. Rae1
{[%clk 0:03:26.1]} 19... Qc6 {[%clk 0:02:54.9]} 20. Qxc6 {[%clk 0:03:02]} 20...
Nxc6 {[%clk 0:02:53.8]} 21. Nd5 {[%clk 0:02:58.1]} 21... fxe6 {[%clk 0:02:50.6]}
22. Nc7 {[%clk 0:02:38.3]} 22... Rc8 {[%clk 0:02:47.8]} 23. Nxe6+ {[%clk
0:02:36.8]} 23... Kf7 {[%clk 0:02:46.6]} 24. Bc4 {[%clk 0:02:31.4]} 24... b5
{[%clk 0:02:18.5]} 25. Nd8+ {[%clk 0:01:37.6]} 25... Kg6 {[%clk 0:02:15]} 26.
Bf7+ {[%clk 0:01:23.1]} 26... Kh6 {[%clk 0:02:08.4]} 27. Ne6 {[%clk 0:01:06.7]}
27... Nd8 {[%clk 0:01:59.6]} 28. Nxd8 {[%clk 0:00:52.3]} 28... Rhxd8 {[%clk
0:01:55]} 29. R1e3 {[%clk 0:00:43.2]} 29... g6 {[%clk 0:01:51.7]} 30. Re6 {[%clk
0:00:36.5]} 30... Kg7 {[%clk 0:01:50.2]} 31. Rxa6 {[%clk 0:00:27]} 31... Kxf7
{[%clk 0:01:43]} 32. Rf3 {[%clk 0:00:26.6]} 32... Kg7 {[%clk 0:01:33]} 33. Rfxf6
{[%clk 0:00:26.5]} 33... Rc2 {[%clk 0:01:27.5]} 34. Rfb6 {[%clk 0:00:21.3]}
34... Rxb2 {[%clk 0:01:25.9]} 35. a4 {[%clk 0:00:20.3]} 35... Rdd2 {[%clk
0:01:23.1]} 36. Ra7+ {[%clk 0:00:19.6]} 36... Kh6 {[%clk 0:01:22]} 37. Rxb5
{[%clk 0:00:19.1]} 37... Rxf2+ {[%clk 0:01:20.9]} 38. Kg3 {[%clk 0:00:18.7]}
38... Rg2+ {[%clk 0:01:19.9]} 39. Kf3 {[%clk 0:00:18.2]} 39... Rxh2 {[%clk
0:01:18.9]} 40. Rxb2 {[%clk 0:00:15.4]} 40... Rxb2 {[%clk 0:01:17.8]} 41. a5
{[%clk 0:00:14.5]} 41... Kg5 {[%clk 0:01:16.9]} 42. a6 {[%clk 0:00:13.7]} 42...
h5 {[%clk 0:01:15.8]} 43. Ra8 {[%clk 0:00:11.6]} 43... Ra2 {[%clk 0:01:15]} 44.
a7 {[%clk 0:00:10.9]} 44... h4 {[%clk 0:01:13.5]} 45. Ke3 {[%clk 0:00:03.7]}
45... h3 {[%clk 0:01:11.5]} 46. Rh8 {[%clk 0:00:02.9]} 46... Rxa7 {[%clk
0:01:10.2]} 47. Rxh3 {[%clk 0:00:02.8]} 47... Ra3+ {[%clk 0:01:09.5]} 0-1

[Event "Live Chess"]
[Site "Chess.com"]
[Date "2024.06.01"]
[Round "-"]
[White "Zhevzh1k7"]
[Black "upoe610"]
[Result "0-1"]
[WhiteElo "1099"]
[BlackElo "2233"]
[TimeControl "300"]
[EndTime "13:36:02 PDT"]
[Termination "upoe610 won by resignation"]

1. e4 {[%clk 0:04:58.9]} 1... e5 {[%clk 0:04:56.3]} 2. Nf3 {[%clk 0:04:56.9]}
2... Nc6 {[%clk 0:04:55.8]} 3. Bc4 {[%clk 0:04:55]} 3... Nf6 {[%clk 0:04:52.8]}
4. Nc3 {[%clk 0:04:50.9]} 4... Nxe4 {[%clk 0:04:51.7]} 5. Nxe4 {[%clk
0:04:46.5]} 5... d5 {[%clk 0:04:50.8]} 6. Bb5 {[%clk 0:04:42.5]} 6... dxe4
{[%clk 0:04:49.5]} 7. Bxc6+ {[%clk 0:04:41.5]} 7... bxc6 {[%clk 0:04:48.4]} 8.
Nxe5 {[%clk 0:04:40.5]} 8... Qg5 {[%clk 0:04:46.8]} 9. Nxc6 {[%clk 0:04:28.8]}
9... Qxg2 {[%clk 0:04:45.1]} 10. Rf1 {[%clk 0:04:21.3]} 10... Bg4 {[%clk
0:04:42.8]} 11. f3 {[%clk 0:04:13.5]} 11... Bxf3 {[%clk 0:04:41.5]} 12. Rxf3
{[%clk 0:04:10.2]} 12... exf3 {[%clk 0:04:41.4]} 0-1

[Event "Live Chess"]
[Site "Chess.com"]
[Date "2024.06.01"]
[Round "-"]
[White "LL220284LL"]
[Black "nitrofish07"]
[Result "1-0"]
[WhiteElo "2561"]
[BlackElo "2095"]
[TimeControl "300"]
[EndTime "13:36:13 PDT"]
[Termination "LL220284LL won by resignation"]

1. e4 {[%clk 0:04:59.2]} 1... c5 {[%clk 0:04:58.3]} 2. b3 {[%clk 0:04:57]} 2...
e5 {[%clk 0:04:54.5]} 3. Bb2 {[%clk 0:04:56.1]} 3... d6 {[%clk 0:04:54.4]} 4.
Nf3 {[%clk 0:04:55]} 4... Nc6 {[%clk 0:04:54.1]} 5. Bc4 {[%clk 0:04:53.4]} 5...
Nf6 {[%clk 0:04:52.8]} 6. d3 {[%clk 0:04:51.7]} 6... Be7 {[%clk 0:04:50.3]} 7.
Nbd2 {[%clk 0:04:50]} 7... O-O {[%clk 0:04:49.9]} 8. Nf1 {[%clk 0:04:48.8]} 8...
a6 {[%clk 0:04:49.4]} 9. Bd5 {[%clk 0:04:44.4]} 9... Be6 {[%clk 0:04:42.6]} 10.
Bxe6 {[%clk 0:04:42]} 10... fxe6 {[%clk 0:04:41.7]} 11. Ng3 {[%clk 0:04:41.6]}
11... b5 {[%clk 0:04:38.7]} 12. a4 {[%clk 0:04:40]} 12... b4 {[%clk 0:04:37.5]}
13. O-O {[%clk 0:04:38.7]} 13... a5 {[%clk 0:04:36.5]} 14. Nd2 {[%clk
0:04:37.7]} 14... d5 {[%clk 0:04:05.2]} 15. Ne2 {[%clk 0:04:33.1]} 15... Qc7
{[%clk 0:03:59.5]} 16. h3 {[%clk 0:04:29.4]} 16... Rad8 {[%clk 0:03:57.2]} 17.
f4 {[%clk 0:04:27.2]} 17... exf4 {[%clk 0:03:47.9]} 18. Nxf4 {[%clk 0:04:25.9]}
18... c4 {[%clk 0:03:46.8]} 19. Nxe6 {[%clk 0:04:24.8]} 19... Qb6+ {[%clk
0:03:39.4]} 20. Kh1 {[%clk 0:04:21]} 20... c3 {[%clk 0:03:37.6]} 21. Bc1 {[%clk
0:04:19.2]} 21... cxd2 {[%clk 0:03:37.1]} 22. Bxd2 {[%clk 0:04:19.1]} 22... dxe4
{[%clk 0:03:32.6]} 23. Nxf8 {[%clk 0:04:17.2]} 23... Bxf8 {[%clk 0:03:30]} 24.
Bg5 {[%clk 0:04:09.5]} 24... Be7 {[%clk 0:03:09.6]} 25. Qe1 {[%clk 0:03:55.7]}
25... exd3 {[%clk 0:03:05.7]} 26. Qe6+ {[%clk 0:03:54]} 26... Kh8 {[%clk
0:02:59.5]} 27. cxd3 {[%clk 0:03:47.3]} 27... Qc5 {[%clk 0:02:53.3]} 28. Bxf6
{[%clk 0:03:41.8]} 28... Bxf6 {[%clk 0:02:47.2]} 29. Rac1 {[%clk 0:03:37.5]}
29... Nd4 {[%clk 0:02:43.5]} 30. Qxf6 {[%clk 0:03:33.8]} 30... gxf6 {[%clk
0:02:25.4]} 31. Rxc5 {[%clk 0:03:32.4]} 31... Nxb3 {[%clk 0:02:25.3]} 32. Rc7
{[%clk 0:03:27.9]} 32... Rd6 {[%clk 0:02:05.1]} 33. Re1 {[%clk 0:03:24.1]} 1-0

[Event "Live Chess"]
[Site "Chess.com"]
[Date "2024.06.01"]
[Round "-"]
[White "Hoogleboogle"]
[Black "Brooms1989"]
[Result "1-0"]
[WhiteElo "1421"]
[BlackElo "1109"]
[TimeControl "300"]
[EndTime "13:36:15 PDT"]
[Termination "Hoogleboogle won by resignation"]

1. d4 {[%clk 0:04:56]} 1... Nf6 {[%clk 0:04:58.6]} 2. c4 {[%clk 0:04:53.3]} 2...
g6 {[%clk 0:04:57.6]} 3. Bg5 {[%clk 0:04:51.1]} 3... Bg7 {[%clk 0:04:56.7]} 4.
e3 {[%clk 0:04:49.3]} 4... O-O {[%clk 0:04:51]} 5. Bd3 {[%clk 0:04:48.6]} 5...
d5 {[%clk 0:04:47.6]} 6. Nc3 {[%clk 0:04:43.4]} 6... dxc4 {[%clk 0:04:44.2]} 7.
Bxc4 {[%clk 0:04:40.4]} 7... Nc6 {[%clk 0:04:37.3]} 8. Nf3 {[%clk 0:04:31.5]}
8... a6 {[%clk 0:04:29.7]} 9. Ne5 {[%clk 0:03:58.6]} 9... Nxe5 {[%clk
0:04:18.8]} 10. dxe5 {[%clk 0:03:56.1]} 10... Qxd1+ {[%clk 0:04:14.7]} 11. Rxd1
{[%clk 0:03:53.5]} 11... h6 {[%clk 0:04:08.2]} 12. exf6 {[%clk 0:03:49.6]} 12...
exf6 {[%clk 0:04:08]} 13. Bf4 {[%clk 0:03:44.4]} 13... g5 {[%clk 0:04:03.3]} 14.
Bxc7 {[%clk 0:03:42.3]} 1-0

[Event "Live Chess"]
[Site "Chess.com"]
[Date "2024.06.01"]
[Round "-"]
[White "GoldsmanB"]
[Black "matt1979"]
[Result "1-0"]
[WhiteElo "1097"]
[BlackElo "1368"]
[TimeControl "300"]
[EndTime "13:36:20 PDT"]
[Termination "GoldsmanB won on time"]

1. d4 {[%clk 0:04:57.1]} 1... e6 {[%clk 0:04:56.9]} 2. e4 {[%clk 0:04:47.7]}
2... d5 {[%clk 0:04:54.7]} 3. e5 {[%clk 0:04:43.9]} 3... c5 {[%clk 0:04:52.4]}
4. c3 {[%clk 0:04:43]} 4... Nc6 {[%clk 0:04:50.1]} 5. Nf3 {[%clk 0:04:41.1]}
5... Qb6 {[%clk 0:04:48.1]} 6. Be2 {[%clk 0:04:39.6]} 6... cxd4 {[%clk
0:04:37.5]} 7. cxd4 {[%clk 0:04:37]} 7... Nge7 {[%clk 0:04:33.1]} 8. Na3 {[%clk
0:04:35.1]} 8... Nf5 {[%clk 0:04:25.4]} 9. Nc2 {[%clk 0:04:33.3]} 9... Bb4+
{[%clk 0:04:05.2]} 10. Kf1 {[%clk 0:04:31.4]} 10... Be7 {[%clk 0:03:59.1]} 11.
Bd3 {[%clk 0:04:18.2]} 11... Nfxd4 {[%clk 0:03:45.6]} 12. Nfxd4 {[%clk
0:04:16.7]} 12... Nxd4 {[%clk 0:03:43.7]} 13. Nxd4 {[%clk 0:04:13.8]} 13... Bd7
{[%clk 0:03:34.2]} 14. Nb3 {[%clk 0:04:04.2]} 14... O-O {[%clk 0:03:19.7]} 15.
Qh5 {[%clk 0:03:56.4]} 15... g6 {[%clk 0:03:13.4]} 16. Qe2 {[%clk 0:03:54.5]}
16... Rfe8 {[%clk 0:03:01.8]} 17. Be3 {[%clk 0:03:53.4]} 17... Qc7 {[%clk
0:02:55.2]} 18. Rc1 {[%clk 0:03:50.4]} 18... Qxe5 {[%clk 0:02:52]} 19. Bd4
{[%clk 0:03:40.3]} 19... Qg5 {[%clk 0:02:38.5]} 20. Be3 {[%clk 0:03:34.6]} 20...
Qf6 {[%clk 0:02:32.8]} 21. Rc2 {[%clk 0:03:25.9]} 21... a6 {[%clk 0:02:21.8]}
22. Qf3 {[%clk 0:03:16.4]} 22... Qxf3 {[%clk 0:02:13.6]} 23. gxf3 {[%clk
0:03:15.3]} 23... Ba4 {[%clk 0:02:09.8]} 24. Bc5 {[%clk 0:03:06]} 24... Bxc5
{[%clk 0:02:05.2]} 25. Rxc5 {[%clk 0:03:05.9]} 25... Bxb3 {[%clk 0:02:01]} 26.
axb3 {[%clk 0:03:05.8]} 26... Rac8 {[%clk 0:01:58]} 27. Rxc8 {[%clk 0:03:03.6]}
27... Rxc8 {[%clk 0:01:56.2]} 28. Ke2 {[%clk 0:03:02.3]} 28... e5 {[%clk
0:01:42]} 29. Rg1 {[%clk 0:02:52.9]} 29... Kg7 {[%clk 0:01:36.4]} 30. Rg5 {[%clk
0:02:50.5]} 30... f6 {[%clk 0:01:32.2]} 31. Rg1 {[%clk 0:02:47]} 31... Rc6
{[%clk 0:01:22.4]} 32. Kd2 {[%clk 0:02:44.5]} 32... Rb6 {[%clk 0:01:20]} 33. Bc2
{[%clk 0:02:38.8]} 33... Rb4 {[%clk 0:01:11.7]} 34. Ra1 {[%clk 0:02:33.3]} 34...
Rh4 {[%clk 0:01:08.1]} 35. Ra5 {[%clk 0:02:30.5]} 35... d4 {[%clk 0:01:05]} 36.
Rd5 {[%clk 0:02:27.1]} 36... Rxh2 {[%clk 0:01:02]} 37. Rd7+ {[%clk 0:02:25.5]}
37... Kh6 {[%clk 0:00:59.3]} 38. Rxb7 {[%clk 0:02:23.9]} 38... Rxf2+ {[%clk
0:00:57.8]} 39. Kd1 {[%clk 0:02:20.9]} 39... Rxf3 {[%clk 0:00:53.3]} 40. Rb6
{[%clk 0:02:18.5]} 40... Kg5 {[%clk 0:00:45.7]} 41. Rxa6 {[%clk 0:02:16.8]}
41... h5 {[%clk 0:00:44.1]} 42. b4 {[%clk 0:02:13.9]} 42... h4 {[%clk
0:00:42.8]} 43. Ra8 {[%clk 0:02:12.8]} 43... Kf4 {[%clk 0:00:37.5]} 44. b5
{[%clk 0:02:11.4]} 44... Ke3 {[%clk 0:00:24.6]} 45. Ra3+ {[%clk 0:01:56.4]}
45... Kf2 {[%clk 0:00:19.6]} 46. Rxf3+ {[%clk 0:01:54.7]} 46... Kxf3 {[%clk
0:00:18.6]} 47. b6 {[%clk 0:01:49.7]} 47... h3 {[%clk 0:00:18]} 48. Be4+ {[%clk
0:01:44.3]} 48... Kxe4 {[%clk 0:00:15.6]} 49. b7 {[%clk 0:01:43.2]} 49... h2
{[%clk 0:00:15.1]} 50. b8=Q {[%clk 0:01:42]} 50... h1=Q+ {[%clk 0:00:14.3]} 51.
Kc2 {[%clk 0:01:41.2]} 51... Qg2+ {[%clk 0:00:12.9]} 52. Kb3 {[%clk 0:01:39.3]}
52... Qf3+ {[%clk 0:00:11.8]} 53. Ka2 {[%clk 0:01:37.8]} 53... Qd3 {[%clk
0:00:09]} 54. Qb7+ {[%clk 0:01:36]} 54... Ke3 {[%clk 0:00:07.5]} 55. Qg2 {[%clk
0:01:27.5]} 55... Qe2 {[%clk 0:00:05.9]} 56. Qxg6 {[%clk 0:01:24.8]} 56... d3
{[%clk 0:00:05.1]} 57. Qh6+ {[%clk 0:01:22.5]} 57... Kf2 {[%clk 0:00:03.4]} 58.
Qh4+ {[%clk 0:01:21.2]} 1-0

[Event "Live Chess"]
[Site "Chess.com"]
[Date "2024.06.01"]
[Round "-"]
[White "booktrunk"]
[Black "koekoekoe"]
[Result "0-1"]
[WhiteElo "1396"]
[BlackElo "2027"]
[TimeControl "300"]
[EndTime "13:36:35 PDT"]
[Termination "koekoekoe won by resignation"]

1. d4 {[%clk 0:04:56.4]} 1... d5 {[%clk 0:04:59.9]} 2. Nc3 {[%clk 0:04:54.5]}
2... Nf6 {[%clk 0:04:59.5]} 3. Bf4 {[%clk 0:04:53.1]} 3... Bf5 {[%clk
0:04:58.9]} 4. Nb5 {[%clk 0:04:49.9]} 4... Na6 {[%clk 0:04:57.6]} 5. e3 {[%clk
0:04:47.4]} 5... e6 {[%clk 0:04:57.1]} 6. h3 {[%clk 0:04:42.9]} 6... Bb4+ {[%clk
0:04:54.7]} 7. c3 {[%clk 0:04:37.2]} 7... Ba5 {[%clk 0:04:53.5]} 8. a3 {[%clk
0:04:33.3]} 8... O-O {[%clk 0:04:35.6]} 9. b4 {[%clk 0:04:31]} 9... Bb6 {[%clk
0:04:34.9]} 10. a4 {[%clk 0:04:29.9]} 10... c6 {[%clk 0:04:26.6]} 11. Nd6 {[%clk
0:04:17.6]} 11... Qd7 {[%clk 0:04:19.7]} 12. Nxf5 {[%clk 0:04:15.4]} 12... exf5
{[%clk 0:04:18.5]} 13. b5 {[%clk 0:04:12.7]} 13... Nc7 {[%clk 0:04:10.7]} 14.
bxc6 {[%clk 0:04:10.4]} 14... bxc6 {[%clk 0:04:10.6]} 15. Nf3 {[%clk 0:04:07.3]}
15... Ne4 {[%clk 0:04:05.6]} 16. Qc2 {[%clk 0:04:00.4]} 16... Ba5 {[%clk
0:04:04.5]} 17. Bd3 {[%clk 0:03:51.3]} 17... Bxc3+ {[%clk 0:04:01]} 18. Kf1
{[%clk 0:03:49.4]} 18... Bxa1 {[%clk 0:03:59.7]} 0-1

[Event "Live Chess"]
[Site "Chess.com"]
[Date "2024.06.01"]
[Round "-"]
[White "wadsy27"]
[Black "grillage"]
[Result "1-0"]
[WhiteElo "2539"]
[BlackElo "1880"]
[TimeControl "300"]
[EndTime "13:36:47 PDT"]
[Termination "wadsy27 won by resignation"]

1. c4 {[%clk 0:04:59.5]} 1... c5 {[%clk 0:04:53.3]} 2. g3 {[%clk 0:04:58.5]}
2... Nc6 {[%clk 0:04:52.5]} 3. Bg2 {[%clk 0:04:53.5]} 3... g6 {[%clk 0:04:51.2]}
4. Nc3 {[%clk 0:04:49.5]} 4... Bg7 {[%clk 0:04:50.4]} 5. Nf3 {[%clk 0:04:48]}
5... Nf6 {[%clk 0:04:49.7]} 6. d4 {[%clk 0:04:46.8]} 6... cxd4 {[%clk
0:04:47.4]} 7. Nxd4 {[%clk 0:04:46.1]} 7... Nxd4 {[%clk 0:04:46.2]} 8. Qxd4
{[%clk 0:04:45.2]} 8... O-O {[%clk 0:04:45.3]} 9. O-O {[%clk 0:04:44.1]} 9... d6
{[%clk 0:04:41.6]} 10. Qd3 {[%clk 0:04:43]} 10... a6 {[%clk 0:04:30.7]} 11. Bg5
{[%clk 0:04:39.9]} 11... Rb8 {[%clk 0:04:27]} 12. Rad1 {[%clk 0:04:34.4]} 12...
Be6 {[%clk 0:04:23.8]} 13. b3 {[%clk 0:04:30.3]} 13... Qc7 {[%clk 0:04:16.2]}
14. Rfe1 {[%clk 0:03:59.7]} 14... Ng4 {[%clk 0:03:56.9]} 15. Nd5 {[%clk
0:03:50.4]} 15... Bxd5 {[%clk 0:03:41.1]} 16. cxd5 {[%clk 0:03:50.3]} 16... Nf6
{[%clk 0:03:35.4]} 17. Rc1 {[%clk 0:03:48.2]} 17... Qb6 {[%clk 0:03:32.4]} 18.
a4 {[%clk 0:03:41.2]} 18... Rbc8 {[%clk 0:03:29.9]} 19. Bh3 {[%clk 0:03:40.1]}
19... Rc7 {[%clk 0:03:24]} 20. Rxc7 {[%clk 0:03:38.6]} 20... Qxc7 {[%clk
0:03:23]} 21. Rc1 {[%clk 0:03:38]} 21... Qa5 {[%clk 0:03:20.2]} 22. Bd2 {[%clk
0:03:27.4]} 22... Qxd5 {[%clk 0:03:15.6]} 23. Qxd5 {[%clk 0:03:26.9]} 23... Nxd5
{[%clk 0:03:14.3]} 24. Bg2 {[%clk 0:03:26.7]} 24... e6 {[%clk 0:03:07.3]} 25.
Bxd5 {[%clk 0:03:25.4]} 25... exd5 {[%clk 0:03:06.1]} 26. Rc7 {[%clk 0:03:25.1]}
26... b5 {[%clk 0:03:02.9]} 27. axb5 {[%clk 0:03:21]} 27... axb5 {[%clk
0:03:01.9]} 28. Rb7 {[%clk 0:03:20.7]} 28... Re8 {[%clk 0:02:56.8]} 29. Kf1
{[%clk 0:03:19.8]} 29... Ra8 {[%clk 0:02:40.4]} 30. Rxb5 {[%clk 0:03:19.4]}
30... d4 {[%clk 0:02:37.5]} 31. b4 {[%clk 0:03:14.5]} 31... Ra1+ {[%clk
0:02:35.4]} 32. Kg2 {[%clk 0:03:13.8]} 32... Ra2 {[%clk 0:02:30.1]} 33. Rb8+
{[%clk 0:03:13]} 33... Bf8 {[%clk 0:02:19.9]} 34. Bh6 {[%clk 0:03:11.8]} 1-0

[Event "Live Chess"]
[Site "Chess.com"]
[Date "2024.06.01"]
[Round "-"]
[White "imchessive"]
[Black "kylet1990"]
[Result "1-0"]
[WhiteElo "1593"]
[BlackElo "738"]
[TimeControl "300"]
[EndTime "13:36:59 PDT"]
[Termination "imchessive won by resignation"]

1. d4 {[%clk 0:04:58.6]} 1... c6 {[%clk 0:04:58.3]} 2. c4 {[%clk 0:04:57.5]}
2... d5 {[%clk 0:04:56.6]} 3. Nf3 {[%clk 0:04:56.1]} 3... Bf5 {[%clk 0:04:54.1]}
4. Nc3 {[%clk 0:04:53.8]} 4... e6 {[%clk 0:04:51.6]} 5. g3 {[%clk 0:04:52.4]}
5... Bb4 {[%clk 0:04:48]} 6. Bf4 {[%clk 0:04:50.4]} 6... Bxc3+ {[%clk
0:04:45.4]} 7. bxc3 {[%clk 0:04:50.3]} 7... Qa5 {[%clk 0:04:41.3]} 8. Qb3 {[%clk
0:04:47.6]} 8... b5 {[%clk 0:04:32.9]} 9. cxb5 {[%clk 0:04:42.6]} 9... cxb5
{[%clk 0:04:30.1]} 10. e3 {[%clk 0:04:34.1]} 10... Nc6 {[%clk 0:04:22.4]} 11.
Bxb5 {[%clk 0:04:31.3]} 11... Rc8 {[%clk 0:04:13.4]} 12. Bxc6+ {[%clk
0:04:23.3]} 12... Rxc6 {[%clk 0:04:10]} 13. Qb8+ {[%clk 0:04:21]} 13... Ke7
{[%clk 0:04:06.1]} 14. O-O {[%clk 0:04:15.7]} 14... Rxc3 {[%clk 0:03:56.5]} 15.
Rac1 {[%clk 0:03:53.2]} 15... Rxc1 {[%clk 0:03:52.9]} 16. Rxc1 {[%clk
0:03:53.1]} 16... Qd8 {[%clk 0:03:40.1]} 17. Rc7+ {[%clk 0:03:46.2]} 17... Kf6
{[%clk 0:03:33.3]} 18. Qxd8+ {[%clk 0:03:43.9]} 1-0